fUST/lending_fUST_20240808
["ID","MTS","AMOUNT","RATE_DAILY","PERIOD"]
[334457661,1723121964920,413.91232311,0.00012,2]
[334457662,1723121965493,203.07210661,0.00012,2]
[334457663,1723121965639,188.2335741,0.00012,2]
[334457664,1723121969249,542.94098629,0.00012,2]
[334457665,1723121970507,154.97310152,0.00012,2]
[334457666,1723121970845,155.46826585,0.00012,2]
[334457667,1723121971545,165.53506923,0.00012,2]
[334457668,1723121972502,942.61257937,0.00012,2]
[334457669,1723121974135,180.86280837,0.00012,2]
[334457670,1723121974475,4712.37284123,0.00012,2]
[334457671,1723121974966,375.83395724,0.00012,2]
[334457672,1723121975945,154.83187595,0.00012,2]
[334457673,1723121976377,201.95607837,0.00012,2]
[334457674,1723121978351,309.3349299,0.00012,2]
[334457675,1723121981268,183.06078838,0.00012,2]
[334457676,1723121981856,568.56884199,0.00012,2]
[334457677,1723121982384,601.6533504,0.00012,2]
[334457678,1723121987759,228.03194025,0.00012,2]
[334457679,1723121988521,212.8471641,0.00012,2]
[334457680,1723121989655,155.14160077,0.00012,2]
[334457681,1723121989896,309.38127527,0.00012,2]
[334457682,1723121990189,1626.86783463,0.00012,2]
[334457683,1723121990225,5651.31154356,9.9e-05,2]
[334457684,1723121993690,154.99184514,0.00012,2]
[334457685,1723121993802,159.24043179,0.00012,2]
[334457686,1723121995638,155.00306802,0.00012,2]
[334457687,1723121997313,154.80808241,0.00012,2]
[334457688,1723121997483,927.70779306,0.00012,2]
[334457689,1723121999121,309.56660444,0.00012,2]
[334457690,1723121999997,2108.40472945,9.9e-05,2]
[334457691,1723122000502,319.72766707,0.00012,2]
[334457692,1723122000674,444.16251202,0.00012,2]
[334457693,1723122001013,519.59956575,0.00012,2]
[334457694,1723122001302,156.61103376,0.00012,2]
[334457695,1723122001817,303.79183971,0.00012,2]
[334457696,1723122002309,342.05014288,0.00012,2]
[334457697,1723122002380,220.45791867,0.00012,2]
[334457698,1723122003891,522.06567766,0.00012,2]
[334457699,1723122004499,180.43272034,0.00012,2]
[334457700,1723122004994,12496.81139471,0.00012,2]
[334457701,1723122005082,404.65460675,9.9e-05,2]
[334457702,1723122005215,506.48190828,0.00012,2]
[334457703,1723122005407,260.82372856,0.00012,2]
[334457704,1723122005545,665.17930419,0.00012,2]
[334457705,1723122005576,200.0,0.00012,2]
[334457706,1723122005957,728.57899177,0.00012,2]
[334457707,1723122008095,163.382471,0.00014247,2]
[334457708,1723122008866,433.28919733,0.00012,2]
[334457709,1723122009386,156.71892504,0.00012,2]
[334457710,1723122009420,185.7946488,0.00012,2]
[334457711,1723122010614,533.23598085,0.00012,2]
[334457712,1723122011380,3048.65447567,0.00013,2]
[334457713,1723122011531,159.75006763,0.00012,2]
[334457714,1723122012111,205.1880395,0.00012,2]
[334457715,1723122013924,533.92328189,0.00012,2]
[334457716,1723122014266,155.96137292,0.00012,2]
[334457717,1723122014330,154.93824139,0.00012,2]
[334457718,1723122014579,157.76489495,0.00012,2]
[334457719,1723122015007,241.128892,0.00012,2]
[334457720,1723122016716,440.8199079,0.00012,2]
[334457721,1723122016847,154.84615865,0.00012,2]
[334457722,1723122019233,154.80649189,0.00012,2]
[334457723,1723122019403,154.93923332,0.00012,2]
[334457724,1723122026873,3607.53129253,0.00014545,2]
[334457725,1723122027401,242.20157419,0.00014545,2]
[334457726,1723122029799,309.30406586,0.00014545,2]
[334457727,1723122030885,413.77152883,0.00014545,2]
[334457728,1723122033388,373.96792038,0.00014545,2]
[334457729,1723122036148,290.31500293,0.00014545,2]
[334457730,1723122044789,159.71520453,0.00014545,2]
[334457731,1723122044929,154.90624237,0.00014545,2]
[334457732,1723122044969,154.81926193,0.00014545,2]
[334457733,1723122046810,156.77873769,0.00014545,2]
[334457734,1723122060443,319.72766707,0.00014545,2]
[334457735,1723122526699,161.273066,0.00014247,2]
[334457736,1723122560320,-816.39879119,0.00016309,2]
[334457737,1723122560340,-154.84363402,0.00016347,2]
[334457738,1723122560361,-380.98727375,0.00019547,2]
[334457739,1723122560381,-169.97433237,0.00019547,2]
[334457798,1723122632613,-263.93663241,0.00019447,2]
[334457799,1723122632622,-172.17444394,0.00019547,2]
[334457800,1723122632633,-142.79892365,0.00021,2]
[334457801,1723122632646,-154.30265846,0.00021,2]
[334457802,1723122632656,-300.0,0.00021274,2]
[334457803,1723122632665,-300.0,0.00021274,2]
[334457804,1723122632674,-23220.26563469,0.00021275,2]
[334457815,1723122638486,-289.285,0.00021275,2]
[334457816,1723122638602,-1390.44936531,0.00021275,2]
[334457817,1723122638611,-301.655964,0.00021359,2]
[334457818,1723122638621,-168.927726,0.00021362,2]
[334457819,1723122638630,-161.273066,0.00021467,2]
[334457820,1723122638641,-494.194417,0.00021599,2]
[334457821,1723122638654,-168.927726,0.00021733,2]
[334457822,1723122638664,-358.0,0.00022,2]
[334457823,1723122638675,-168.927726,0.00022105,2]
[334457824,1723122638686,-358.0,0.00022192,2]
[334457825,1723122638697,-168.927726,0.00022476,2]
[334457826,1723122638707,-176.925231,0.00022894,2]
[334457827,1723122638717,-358.0,0.00023014,2]
[334457828,1723122638727,-2005.0,0.00023251,10]
[334457829,1723122638737,-2874.17562263,0.00023913,2]
[334457830,1723122638747,-360.0,0.00024164,2]
[334457831,1723122638757,-164.610023,0.00024324,2]
[334457832,1723122638768,-154.86095337,0.00025,2]
[334457833,1723122638779,-12467.3965525,0.00025,2]
[334457834,1723122638789,-640.91972457,0.00025151,2]
[334457835,1723122638799,-358.0,0.00025775,2]
[334457836,1723122638808,-1000.0,0.00026,26]
[334457837,1723122638818,-200.0,0.00026027,2]
[334457838,1723122638828,-2874.17562261,0.00026054,2]
[334457839,1723122638838,-621.04598623,0.00026408,2]
[334457840,1723122638849,-160.64700877,0.00026481,2]
[334457841,1723122638858,-402.58073778,0.00026569,2]
[334457842,1723122638868,-500.0,0.00026574,2]
[334457843,1723122638878,-154.22221795,0.00026574,2]
[334457844,1723122638887,-500.0,0.00026574,2]
[334457845,1723122638896,-500.0,0.00026574,2]
[334457846,1723122638905,-500.0,0.00026574,2]
[334457847,1723122638914,-500.0,0.00026574,2]
[334457848,1723122638923,-500.0,0.00026574,2]
[334457849,1723122638933,-500.0,0.00026574,2]
[334457850,1723122638942,-500.0,0.00026574,2]
[334457851,1723122638951,-500.0,0.00026574,2]
[334457852,1723122638963,-232.28661703,0.00026574,2]
[334457853,1723122638972,-500.0,0.00026574,2]
[334457854,1723122638983,-500.0,0.00026574,2]
[334457855,1723122638993,-500.0,0.00026574,2]
[334457856,1723122639003,-500.0,0.00026574,2]
[334457857,1723122639013,-500.0,0.00026574,2]
[334457858,1723122639025,-500.0,0.00026574,2]
[334457859,1723122639034,-500.0,0.00026574,2]
[334457860,1723122639044,-500.0,0.00026574,2]
[334457861,1723122639054,-500.0,0.00026574,2]
[334457862,1723122639063,-389.4306785,0.00026574,2]
[334457863,1723122639072,-500.0,0.00026574,2]
[334457864,1723122639082,-500.0,0.00026574,2]
[334457865,1723122639092,-500.0,0.00026574,2]
[334457866,1723122639104,-500.0,0.00026574,2]
[334457867,1723122639114,-881.97401853,0.00026589,2]
[334457868,1723122639123,-4056.02343782,0.00027,2]
[334457869,1723122639133,-1000.0,0.00027,27]
[334457870,1723122639143,-18236.45351306,0.00027,2]
[334457871,1723122639154,-175.0,0.00027,2]
[334457872,1723122639165,-1613.81063424,0.00027079,2]
[334457873,1723122639178,-1613.81063421,0.00027132,2]
[334457874,1723122639187,-157.0,0.00027179,2]
[334457875,1723122639196,-157.0,0.00027179,2]
[334457876,1723122639207,-157.0,0.00027179,2]
[334457877,1723122639217,-157.0,0.00027179,2]
[334457878,1723122639227,-157.0,0.00027179,2]
[334457879,1723122639237,-157.0,0.00027179,2]
[334457880,1723122639247,-157.0,0.00027179,2]
[334457881,1723122639258,-157.0,0.00027179,2]
[334457882,1723122639268,-157.0,0.00027179,2]
[334457883,1723122639278,-157.0,0.00027179,2]
[334457884,1723122639288,-157.0,0.00027179,2]
[334457885,1723122639297,-157.0,0.00027179,2]
[334457886,1723122639308,-157.0,0.00027179,2]
[334457887,1723122639318,-157.0,0.00027179,2]
[334457888,1723122639327,-153.0,0.00027179,2]
[334457889,1723122639337,-153.0,0.00027179,2]
[334457890,1723122639350,-153.0,0.00027179,2]
[334457891,1723122639360,-153.0,0.00027179,2]
[334457892,1723122639369,-157.0,0.00027179,2]
[334457893,1723122639379,-157.0,0.00027179,2]
[334457894,1723122639388,-157.0,0.00027179,2]
[334457895,1723122639398,-157.0,0.00027179,2]
[334457896,1723122639407,-157.0,0.00027179,2]
[334457897,1723122639417,-157.0,0.00027179,2]
[334457898,1723122639426,-157.0,0.00027179,2]
[334457899,1723122639436,-157.0,0.00027179,2]
[334457900,1723122639446,-157.0,0.00027179,2]
[334457901,1723122639455,-157.0,0.00027179,2]
[334457902,1723122639465,-157.0,0.00027179,2]
[334457903,1723122639474,-157.0,0.00027179,2]
[334457904,1723122639483,-157.0,0.00027179,2]
[334457905,1723122639494,-1613.81063421,0.00027185,2]
[334457906,1723122639504,-5326.04,0.00027227,3]
[334457907,1723122639513,-1613.81063421,0.00027237,2]
[334457908,1723122639533,-520.8,0.0002727,3]
[334457909,1723122639545,-1613.81063421,0.0002729,2]
[334457910,1723122639555,-2325.92675409,0.00027297,2]
[334457911,1723122639565,-150.112233,0.000273,10]
[334457912,1723122639575,-35613.94890421,0.00027353,5]
[334457913,1723122639585,-218.18326497,0.00027386,2]
[334457914,1723122639599,-358.0,0.00027386,2]
[334457915,1723122639609,-568.447196,0.00027387,7]
[334457916,1723122639619,-206.78023,0.00027387,7]
[334457917,1723122639629,-568.447196,0.00027387,7]
[334457918,1723122639639,-151.0,0.00027387,7]
[334457919,1723122639649,-151.0,0.00027387,2]
[334457920,1723122639659,-151.0,0.00027387,7]
[334457921,1723122639668,-554.698775,0.00027387,7]
[334457922,1723122639679,-554.698775,0.00027387,7]
[334457923,1723122639689,-151.0,0.00027387,7]
[334457924,1723122639699,-172.054512,0.00027387,7]
[334457925,1723122639710,-172.054512,0.00027387,7]
[334457926,1723122639719,-191.718539,0.00027387,7]
[334457927,1723122639729,-191.718539,0.00027387,7]
[334457928,1723122639739,-305.65463372,0.0002739,2]
[334457929,1723122639748,-222.51711571,0.00027394,2]
[334457930,1723122639758,-500.0,0.00027394,2]
[334457931,1723122639768,-500.0,0.00027394,2]
[334457932,1723122639778,-500.0,0.00027394,2]
[334457933,1723122639789,-500.0,0.00027394,2]
[334457934,1723122639799,-500.0,0.00027394,2]
[334457935,1723122639811,-500.0,0.00027394,2]
[334457936,1723122639821,-500.0,0.00027394,2]
[334457937,1723122639834,-270.11429824,0.00027394,2]
[334457938,1723122639846,-500.0,0.00027394,2]
[334457939,1723122639855,-500.0,0.00027394,2]
[334457940,1723122639865,-500.0,0.00027394,2]
[334457941,1723122639874,-500.0,0.00027394,2]
[334457942,1723122639883,-500.0,0.00027394,2]
[334457943,1723122639892,-274.81697316,0.00027394,2]
[334457944,1723122639902,-500.0,0.00027394,2]
[334457946,1723122639912,-500.0,0.00027394,2]
[334457947,1723122639923,-600.0,0.00027394,2]
[334457948,1723122639933,-28216.50904566,0.00027395,11]
[334457949,1723122639943,-38029.84923838,0.00027395,2]
[334457950,1723122639955,-29271.558443,0.00027395,2]
[334457951,1723122639965,-2605.08504403,0.00027396,2]
[334457952,1723122639976,-7124.095919,0.00027397,11]
[334457953,1723122639985,-500.0,0.00027397,7]
[334457954,1723122639995,-290.43720947,0.00027397,7]
[334457955,1723122640006,-304.84690658,0.00027397,7]
[334457956,1723122640017,-338.00009204,0.00027397,7]
[334457957,1723122640027,-556.81,0.00027397,7]
[334457958,1723122640037,-585.98,0.00027397,7]
[334457959,1723122640047,-500.0,0.00027397,7]
[334457960,1723122640057,-500.0,0.00027397,7]
[334457961,1723122640067,-539.74,0.00027397,7]
[334457963,1723122640076,-500.0,0.00027397,7]
[334457964,1723122640087,-500.0,0.00027397,7]
[334457965,1723122640098,-529.37199717,0.00027397,7]
[334457966,1723122640109,-500.0,0.00027397,2]
[334457967,1723122640119,-156.76019213,0.00027397,7]
[334457968,1723122640129,-529.87996474,0.00027397,7]
[334457969,1723122640139,-500.0,0.00027397,7]
[334457970,1723122640149,-500.0,0.00027397,7]
[334457971,1723122640158,-500.0,0.00027397,7]
[334457972,1723122640171,-500.0,0.00027397,7]
[334457973,1723122640181,-504.50821932,0.00027397,7]
[334457974,1723122640190,-573.78,0.00027397,7]
[334457975,1723122640200,-500.0,0.00027397,7]
[334457976,1723122640210,-558.49,0.00027397,7]
[334457977,1723122640221,-500.0,0.00027397,7]
[334457978,1723122640231,-500.0,0.00027397,7]
[334457979,1723122640241,-500.0,0.00027397,7]
[334457980,1723122640252,-500.0,0.00027397,7]
[334457981,1723122640262,-500.0,0.00027397,7]
[334457982,1723122640272,-500.0,0.00027397,7]
[334457983,1723122640284,-500.0,0.00027397,7]
[334457984,1723122640293,-505.67776557,0.00027397,7]
[334457985,1723122640304,-543.25624282,0.00027397,7]
[334457986,1723122640313,-505.05980849,0.00027397,7]
[334457987,1723122640323,-500.0,0.00027397,7]
[334457988,1723122640333,-500.0,0.00027397,7]
[334457989,1723122640342,-500.0,0.00027397,7]
[334457990,1723122640354,-500.0,0.00027397,7]
[334457991,1723122640365,-500.0,0.00027397,7]
[334457992,1723122640380,-500.0,0.00027397,7]
[334457993,1723122640391,-502.68604022,0.00027397,7]
[334457994,1723122640401,-500.0,0.00027397,7]
[334457995,1723122640412,-500.0,0.00027397,7]
[334457996,1723122640423,-500.0,0.00027397,7]
[334457997,1723122640433,-533.88832438,0.00027397,7]
[334457998,1723122640443,-500.0,0.00027397,7]
[334457999,1723122640453,-261.94667527,0.00027397,7]
[334458000,1723122640463,-501.26509976,0.00027397,7]
[334458001,1723122640474,-500.0,0.00027397,7]
[334458003,1723122640484,-510.23759495,0.00027397,7]
[334458004,1723122640495,-500.0,0.00027397,7]
[334458005,1723122640506,-500.0,0.00027397,7]
[334458006,1723122640516,-279.90491616,0.00027397,7]
[334458007,1723122640527,-500.0,0.00027397,7]
[334458008,1723122640538,-500.0,0.00027397,7]
[334458009,1723122640549,-503.38556965,0.00027397,7]
[334458010,1723122640560,-500.0,0.00027397,7]
[334458011,1723122640570,-500.0,0.00027397,7]
[334458012,1723122640580,-500.0,0.00027397,7]
[334458013,1723122640590,-500.0,0.00027397,7]
[334458014,1723122640604,-504.50701379,0.00027397,7]
[334458015,1723122640614,-500.0,0.00027397,2]
[334458016,1723122640623,-500.0,0.00027397,7]
[334458017,1723122640633,-500.91253125,0.00027397,7]
[334458018,1723122640643,-500.0,0.00027397,7]
[334458019,1723122640653,-504.04150244,0.00027397,7]
[334458020,1723122640662,-500.0,0.00027397,7]
[334458021,1723122640672,-500.0,0.00027397,7]
[334458022,1723122640681,-500.0,0.00027397,7]
[334458023,1723122640691,-500.0,0.00027397,7]
[334458024,1723122640700,-501.11843849,0.00027397,7]
[334458025,1723122640710,-502.00639052,0.00027397,7]
[334458026,1723122640719,-500.0,0.00027397,7]
[334458027,1723122640729,-500.0,0.00027397,7]
[334458028,1723122640738,-500.0,0.00027397,7]
[334458029,1723122640748,-560.15,0.00027397,7]
[334458030,1723122640757,-212.56,0.00027397,7]
[334458031,1723122640767,-500.0,0.00027397,7]
[334458032,1723122640776,-500.0,0.00027397,7]
[334458033,1723122640786,-500.0,0.00027397,7]
[334458034,1723122640795,-500.0,0.00027397,7]
[334458035,1723122640806,-501.10561582,0.00027397,7]
[334458036,1723122640816,-500.0,0.00027397,7]
[334458037,1723122640826,-500.0,0.00027397,7]
[334458038,1723122640835,-500.76014814,0.00027397,7]
[334458039,1723122640848,-500.0,0.00027397,7]
[334458040,1723122640857,-500.0,0.00027397,7]
[334458041,1723122640866,-537.61215408,0.00027397,7]
[334458042,1723122640876,-417.19383834,0.00027397,7]
[334458043,1723122640885,-500.0,0.00027397,7]
[334458044,1723122640894,-500.0,0.00027397,7]
[334458045,1723122640903,-500.0,0.00027397,7]
[334458046,1723122640913,-500.65385222,0.00027397,7]
[334458047,1723122640924,-501.61935866,0.00027397,7]
[334458049,1723122640934,-500.0,0.00027397,7]
[334458051,1723122640945,-501.14761608,0.00027397,7]
[334458053,1723122640955,-501.18642415,0.00027397,7]
[334458055,1723122640965,-482.95790235,0.00027397,7]
[334458057,1723122640974,-500.0,0.00027397,7]
[334458060,1723122640984,-367.64667449,0.00027397,7]
[334458062,1723122640994,-500.0,0.00027397,7]
[334458064,1723122641004,-500.0,0.00027397,7]
[334458066,1723122641014,-501.27758262,0.00027397,7]
[334458068,1723122641024,-500.0,0.00027397,7]
[334458070,1723122641035,-500.0,0.00027397,7]
[334458072,1723122641045,-500.0,0.00027397,7]
[334458074,1723122641055,-500.0,0.00027397,7]
[334458076,1723122641064,-503.48049863,0.00027397,7]
[334458078,1723122641075,-500.84658584,0.00027397,7]
[334458088,1723122641327,-500.0,0.00027397,7]
[334458089,1723122641338,-500.0,0.00027397,7]
[334458090,1723122641350,-500.0,0.00027397,7]
[334458091,1723122641359,-500.0,0.00027397,7]
[334458092,1723122641370,-500.0,0.00027397,7]
[334458093,1723122641379,-1023.19,0.00027397,7]
[334458094,1723122641389,-500.0,0.00027397,7]
[334458095,1723122641398,-500.0,0.00027397,7]
[334458096,1723122641408,-500.0,0.00027397,7]
[334458097,1723122641418,-500.0,0.00027397,7]
[334458098,1723122641427,-642.95,0.00027397,7]
[334458099,1723122641437,-500.0,0.00027397,7]
[334458100,1723122641446,-502.32246025,0.00027397,7]
[334458101,1723122641455,-500.80310453,0.00027397,7]
[334458102,1723122641465,-500.0,0.00027397,7]
[334458103,1723122641474,-500.0,0.00027397,7]
[334458104,1723122641484,-500.0,0.00027397,7]
[334458105,1723122641494,-500.0,0.00027397,7]
[334458106,1723122641503,-500.0,0.00027397,7]
[334458107,1723122641512,-500.0,0.00027397,7]
[334458108,1723122641522,-505.25966261,0.00027397,7]
[334458109,1723122641533,-500.0,0.00027397,7]
[334458110,1723122641543,-500.0,0.00027397,7]
[334458111,1723122641554,-500.0,0.00027397,7]
[334458112,1723122641565,-500.0,0.00027397,7]
[334458113,1723122641576,-502.90519862,0.00027397,7]
[334458114,1723122641587,-500.0,0.00027397,7]
[334458115,1723122641600,-500.0,0.00027397,7]
[334458116,1723122641611,-500.0,0.00027397,7]
[334458117,1723122641621,-500.0,0.00027397,7]
[334458118,1723122641631,-502.27175704,0.00027397,7]
[334458119,1723122641652,-500.0,0.00027397,7]
[334458120,1723122641663,-515.8683105,0.00027397,7]
[334458121,1723122641673,-500.0,0.00027397,7]
[334458122,1723122641684,-500.0,0.00027397,7]
[334458123,1723122641694,-500.0,0.00027397,7]
[334458124,1723122641703,-562.00758773,0.00027397,7]
[334458125,1723122641713,-468.83987405,0.00027397,7]
[334458126,1723122641724,-500.0,0.00027397,7]
[334458127,1723122641734,-500.0,0.00027397,7]
[334458128,1723122641744,-515.72987825,0.00027397,7]
[334458129,1723122641754,-500.0,0.00027397,7]
[334458130,1723122641764,-501.36640129,0.00027397,7]
[334458131,1723122641774,-500.0,0.00027397,7]
[334458132,1723122641784,-309.21151064,0.00027397,7]
[334458133,1723122641794,-500.0,0.00027397,7]
[334458134,1723122641803,-1102.46,0.00027397,7]
[334458135,1723122641813,-500.0,0.00027397,7]
[334458136,1723122641823,-500.0,0.00027397,7]
[334458137,1723122641833,-500.0,0.00027397,7]
[334458138,1723122641845,-500.0,0.00027397,7]
[334458139,1723122641858,-500.0,0.00027397,7]
[334458140,1723122641876,-500.0,0.00027397,7]
[334458141,1723122641886,-500.0,0.00027397,7]
[334458142,1723122641896,-500.0,0.00027397,7]
[334458143,1723122641905,-500.0,0.00027397,7]
[334458144,1723122641915,-500.0,0.00027397,7]
[334458145,1723122641925,-500.0,0.00027397,7]
[334458146,1723122641935,-500.0,0.00027397,7]
[334458147,1723122641946,-500.0,0.00027397,7]
[334458148,1723122641958,-500.0,0.00027397,7]
[334458149,1723122641968,-502.39296153,0.00027397,7]
[334458150,1723122641979,-500.0,0.00027397,7]
[334458151,1723122641989,-500.0,0.00027397,7]
[334458152,1723122641999,-500.0,0.00027397,7]
[334458153,1723122642009,-500.0,0.00027397,7]
[334458154,1723122642020,-500.0,0.00027397,7]
[334458155,1723122642031,-500.0,0.00027397,7]
[334458156,1723122642042,-616.01023069,0.00027397,7]
[334458157,1723122642053,-500.0,0.00027397,7]
[334458158,1723122642062,-500.0,0.00027397,7]
[334458159,1723122642074,-500.0,0.00027397,7]
[334458160,1723122642085,-506.48266255,0.00027397,7]
[334458161,1723122642096,-512.87510817,0.00027397,7]
[334458162,1723122642106,-501.5616108,0.00027397,7]
[334458163,1723122642116,-540.86,0.00027397,7]
[334458164,1723122642127,-505.71482185,0.00027397,7]
[334458165,1723122642138,-500.0,0.00027397,7]
[334458166,1723122642149,-500.0,0.00027397,7]
[334458167,1723122642160,-500.0,0.00027397,7]
[334458168,1723122642174,-500.0,0.00027397,7]
[334458169,1723122642184,-500.0,0.00027397,7]
[334458170,1723122642195,-500.0,0.00027397,7]
[334458171,1723122642206,-500.54070269,0.00027397,7]
[334458172,1723122642216,-763.39,0.00027397,7]
[334458173,1723122642225,-500.0,0.00027397,7]
[334458174,1723122642235,-500.0,0.00027397,7]
[334458175,1723122642246,-502.30998155,0.00027397,7]
[334458176,1723122642256,-500.0,0.00027397,7]
[334458177,1723122642267,-500.0,0.00027397,7]
[334458178,1723122642276,-378.1654324,0.00027397,7]
[334458179,1723122642287,-500.0,0.00027397,7]
[334458180,1723122642297,-500.0,0.00027397,7]
[334458181,1723122642306,-500.0,0.00027397,7]
[334458182,1723122642316,-500.0,0.00027397,7]
[334458183,1723122642326,-500.0,0.00027397,7]
[334458184,1723122642337,-500.0,0.00027397,7]
[334458185,1723122642350,-500.0,0.00027397,7]
[334458186,1723122642360,-502.57389533,0.00027397,7]
[334458187,1723122642373,-151.0,0.00027397,7]
[334458188,1723122642383,-500.0,0.00027397,7]
[334458189,1723122642393,-151.0,0.00027397,7]
[334458190,1723122642403,-501.78520587,0.00027397,7]
[334458191,1723122642414,-151.0,0.00027397,7]
[334458192,1723122642426,-162.669912,0.00027397,7]
[334458193,1723122642437,-200.56675743,0.00027397,7]
[334458194,1723122642448,-501.56228722,0.00027397,7]
[334458195,1723122642457,-500.0,0.00027397,7]
[334458196,1723122642466,-502.92972566,0.00027397,7]
[334458197,1723122642476,-500.0,0.00027397,7]
[334458198,1723122642486,-500.0,0.00027397,7]
[334458199,1723122642496,-500.0,0.00027397,7]
[334458200,1723122642506,-500.0,0.00027397,7]
[334458201,1723122642515,-833.91,0.00027397,7]
[334458202,1723122642526,-500.0,0.00027397,7]
[334458203,1723122642537,-500.0,0.00027397,7]
[334458204,1723122642547,-700.7,0.00027397,7]
[334458205,1723122642558,-500.0,0.00027397,7]
[334458206,1723122642569,-502.08967705,0.00027397,7]
[334458207,1723122642579,-302.81918853,0.00027397,7]
[334458208,1723122642589,-503.0343729,0.00027397,7]
[334458209,1723122642601,-500.0,0.00027397,7]
[334458210,1723122642611,-500.0,0.00027397,7]
[334458211,1723122642621,-200.0,0.00027397,7]
[334458212,1723122642631,-1721.11,0.00027397,7]
[334458213,1723122642640,-1019.11,0.00027397,7]
[334458214,1723122642649,-500.0,0.00027397,7]
[334458215,1723122642659,-500.0,0.00027397,7]
[334458216,1723122642671,-500.0,0.00027397,7]
[334458217,1723122642682,-500.0,0.00027397,7]
[334458218,1723122642692,-500.0,0.00027397,7]
[334458219,1723122642701,-500.0,0.00027397,7]
[334458220,1723122642712,-500.0,0.00027397,7]
[334458221,1723122642722,-500.0,0.00027397,7]
[334458222,1723122642732,-496.0,0.00027397,7]
[334458223,1723122642741,-1196.4,0.00027397,7]
[334458224,1723122642751,-500.0,0.00027397,7]
[334458225,1723122642760,-500.0,0.00027397,7]
[334458226,1723122642771,-500.0,0.00027397,7]
[334458227,1723122642782,-1164.39,0.00027397,7]
[334458228,1723122642793,-500.0,0.00027397,7]
[334458229,1723122642805,-500.0,0.00027397,7]
[334458230,1723122642817,-500.0,0.00027397,7]
[334458231,1723122642828,-503.62180148,0.00027397,7]
[334458232,1723122642839,-501.33308208,0.00027397,7]
[334458234,1723122642852,-500.0,0.00027397,7]
[334458236,1723122642861,-500.0,0.00027397,7]
[334458237,1723122642871,-1312.24,0.00027397,7]
[334458238,1723122642880,-500.0,0.00027397,7]
[334458239,1723122642890,-1000.5,0.00027397,7]
[334458240,1723122642899,-500.0,0.00027397,7]
[334458241,1723122642908,-501.01373827,0.00027397,7]
[334458242,1723122642918,-508.13894592,0.00027397,7]
[334458243,1723122642927,-151.0,0.00027397,7]
[334458244,1723122642937,-500.72339024,0.00027397,7]
[334458245,1723122642947,-500.0,0.00027397,7]
[334458246,1723122642957,-502.96226065,0.00027397,7]
[334458247,1723122642968,-500.0,0.00027397,7]
[334458248,1723122642980,-500.0,0.00027397,7]
[334458249,1723122642990,-151.0,0.00027397,7]
[334458250,1723122643000,-151.0,0.00027397,7]
[334458251,1723122643009,-608.73,0.00027397,7]
[334458252,1723122643019,-500.0,0.00027397,7]
[334458253,1723122643028,-500.0,0.00027397,7]
[334458254,1723122643038,-151.0,0.00027397,7]
[334458255,1723122643047,-153.67541,0.00027397,7]
[334458257,1723122643056,-500.0,0.00027397,7]
[334458259,1723122643066,-500.0,0.00027397,7]
[334458262,1723122643076,-501.97172639,0.00027397,7]